[Event "44th Chess Olympiad Open 2022"]
[Site "Chennai"]
[Date "2022.07.30"]
[Round "2.2"]
[White "Delgado Ramirez, Neuris"]
[Black "So, Wesley"]
[Result "1/2-1/2"]
[WhiteElo "2614"]
[BlackElo "2773"]
[Annotator "TA"]
[PlyCount "98"]
[EventDate "2022.??.??"]
[TimeControl "60"]

{[%evp 10,98,6,10,15,0,0,0,0,0,-3,-11,-6,-33,-22,-43,-52,-59,-50,-68,-63,-57,
-56,-69,-60,-87,-68,-110,-101,-90,-64,-69,-80,-68,-66,-92,-77,-102,-78,-82,-69,
-87,-96,-99,-92,-92,-75,-89,-99,-133,-115,-146,-137,-144,-142,-137,-63,-157,
-159,-161,-163,-145,-120,-224,-210,-234,-200,-204,-208,-268,-285,-333,-241,
-281,-273,-289,-179,-269,-235,-264,-268,-229,-75,-93,0,-170,0,-246,0,-85,0]} 1.
e4 {[%emt 1:20:49]} e5 {[%emt 0:00:09]} 2. Nf3 {[%emt 0:00:15]} Nc6 {[%emt 0:
00:00]} 3. Nc3 {[%emt 0:00:50]} Nf6 {[%emt 0:00:08]} 4. Bb5 {[%emt 0:00:24]}
Bb4 {[%emt 0:04:57]} 5. Bxc6 {[%emt 0:06:39]} dxc6 {[%emt 0:00:25]} 6. d3 {
[%emt 0:18:21]} Qe7 {[%emt 0:01:28] C49: Four Knights: 4 Bb5 Bb4.} 7. h3 {
[%emt 0:01:21]} h6 {[%emt 0:04:21]} 8. Bd2 {[%emt 0:07:20]} Bd6 {[%emt 0:05:01]
[#] The position is equal.} 9. Ne2 $146 {[%emt 0:04:09][%cal Yc3e2,Ye2g3,Yg3f1,
Yf1e3,Ye3d5]} ({Predecessor:} 9. Qe2 c5 10. Nd1 Be6 11. Ne3 Nd7 12. Bc3 f6 13.
a4 Nb8 14. Nh4 Qf7 15. Nc4 {½-½ (62) Bergstrom,R (2355)-Greiff,H (2282)
Sweden 2009}) 9... Be6 {[%emt 0:01:46]} 10. Ng3 {[%emt 0:00:51][%cal Yb2b4]}
O-O-O {[%emt 0:00:47]} 11. Qe2 {[%emt 0:00:57]} g6 {[%emt 0:05:07]} 12. a3 {
[%emt 0:00:55]} Nd7 {[%emt 0:01:46][%cal Yf6d7,Yd7b8,Yb8c6]} 13. Bc3 {[%emt 0:
02:16]} f6 {[%emt 0:05:17]} 14. h4 {[%emt 0:17:31]} h5 {[%emt 0:00:00]} 15. Nf1
{[%emt 0:04:00]} c5 {[%emt 0:10:24]} 16. Ne3 {[%emt 0:01:16]} Nb8 {[%emt 0:00:
11]} 17. Bd2 {[%emt 0:03:12][%cal Yb2b4]} Nc6 {[%emt 0:00:11]} 18. c4 {[%emt 0:
10:38][%cal Yb2b4]} Qf7 {[%emt 0:12:42]} (18... Bg4 {feels hotter.} 19. Bc3 f5
20. g3 fxe4 21. dxe4 Nd4) 19. Bc3 {[%emt 0:11:29]} a5 {[%emt 0:09:25]} 20. Qc2
{[%emt 0:01:36]} b6 {[%emt 0:00:50]} 21. Nd5 {[%emt 0:00:00]} Kb7 {[%emt 0:00:
43]} 22. Rb1 {[%emt 0:01:04]} Ra8 {[%emt 0:04:36]} 23. O-O {[%emt 0:01:55]} a4
{[%emt 0:14:33]} 24. b4 {[%emt 0:01:43]} axb3 $1 {[%emt 0:00:02]} 25. Rxb3 {
[%emt 0:00:06]} Ra6 {[%emt 0:00:04]} 26. Nd2 {[%emt 0:00:18]} Rha8 {[%emt 0:00:
48]} 27. Rfb1 {[%emt 0:00:48]} Kc8 {[%emt 0:00:00]} 28. Bb2 {[%emt 0:01:51]}
Qf8 {[%emt 0:04:21]} 29. f4 {[%emt 0:00:44]} exf4 {[%emt 0:00:39]} 30. Bxf6 {
[%emt 0:00:38]} Bxd5 {[%emt 0:04:32]} (30... Rxa3 31. Qc3 Ra2 32. R3b2 $17) 31.
cxd5 {[%emt 0:00:02]} Qxf6 {[%emt 0:00:58]} 32. dxc6 {[%emt 0:00:06]} Rxa3 {
[%emt 0:01:01]} ({Better is} 32... Be7 $1 $17 33. Nc4 Qd4+ 34. Qf2 Qxf2+ 35.
Kxf2 Bxh4+ 36. Ke2 Kd8) 33. Nf3 {[%emt 0:01:11]} (33. Qc4 $15 Qd4+ 34. Qxd4
cxd4 35. Kf1) 33... Be7 $1 $17 {[%emt 0:00:35]} 34. Rxa3 {[%emt 0:00:40]} Rxa3
{[%emt 0:00:01]} 35. Qc1 {[%emt 0:00:07]} Ra8 {[%emt 0:01:45]} ({Much worse is
} 35... Rxd3 $6 36. Qc4 Ra3 37. Rd1 Qxc6 38. Ne5 $11) 36. d4 {[%emt 0:00:36]} (
36. Qc4 $17 {keeps fighting.} Qxc6 37. Qf7) 36... Qxc6 $19 {[%emt 0:00:28]} ({
Stronger than} 36... cxd4 37. Qc4 $15) 37. d5 {[%emt 0:00:22]} Qd6 {[%emt 0:01:
37]} 38. Qc3 {[%emt 0:00:32]} Ra4 {[%emt 0:00:00]} 39. Re1 {[%emt 0:00:51]} c4
{[%emt 0:02:14]} 40. Rd1 {[%emt 0:00:02]} b5 {[%emt 0:01:26] Hoping for ...
Qc5+.} 41. Qh8+ {[%emt 0:03:47]} Qd8 {[%emt 0:00:00]} 42. Qg7 {[%emt 0:04:01]}
Ra6 {[%emt 0:09:36]} 43. e5 {[%emt 0:04:54]} (43. Kh2 $142) 43... Bc5+ {
[%emt 0:05:12]} 44. Kh2 {[%emt 0:01:07]} Qf8 {[%emt 0:00:00] Prevents d6.} 45.
Qh7 {[%emt 0:01:20][%cal Yd5d6]} Qe7 {[%emt 0:00:06] Inhibits d6.} (45... Qe8
$1 $19 {Threatens to win with ...c3.} 46. Re1 Ra7) 46. Qg8+ $17 {[%emt 0:01:17]
} Qd8 {[%emt 0:00:24]} (46... Kb7 $1 $17 {White must now prevent ...c3.} 47.
Rb1 b4) 47. Qf7 $2 {[%emt 0:00:35]} (47. Qg7 $1 $11 {and White has nothing to
worry.}) 47... Qf8 {[%emt 0:00:11]} (47... c3 $142 48. e6 Be7 49. Qxg6 b4) 48.
Qh7 $19 {[%emt 0:00:08][%cal Yd5d6] [#]} Qe7 $2 (48... Qe8 $1 $19 {Strongly
threatening ...c3.} 49. Re1 Ra7) 49. Qg8+ $17 {[%emt 0:00:00] [#]} Qf8 {
Weighted Error Value: White=0.22 (precise) /Black=0.22 (precise)} (49... Kb7 $1
$17 50. Rb1 Rb6) 1/2-1/2

[Event "44th Chess Olympiad Open 2022"]
[Site "Chennai"]
[Date "2022.07.30"]
[Round "2.2"]
[White "Zacarias, M Ruben D"]
[Black "Shankland, Sam"]
[Result "1/2-1/2"]
[WhiteElo "2175"]
[BlackElo "2720"]
[Annotator "TA"]
[PlyCount "64"]
[EventDate "2022.??.??"]
[TimeControl "60"]

{[%evp 9,64,17,17,18,24,7,13,8,10,0,52,52,52,52,54,42,52,51,45,43,53,52,87,15,
9,16,16,14,38,40,55,57,57,56,46,43,52,45,52,53,54,52,67,65,94,50,47,27,29,29,
35,26,26,27,56,35,51]} 1. e4 {[%emt 0:00:03]} c5 {[%emt 0:00:13]} 2. Nf3 {
[%emt 0:00:08]} d6 {[%emt 0:00:05]} 3. Bb5+ {[%emt 0:00:56]} Nd7 {[%emt 0:00:
00]} 4. a4 {[%emt 0:00:33]} Ngf6 {[%emt 0:02:45]} 5. Nc3 {[%emt 0:00:34]} a6 {
[%emt 0:00:42]} 6. Be2 {[%emt 0:00:16] B51: Sicilian: Moscow Variation (3 Bb5+)
without 3...Bd7.} b6 {[%emt 0:00:07]} 7. d4 {[%emt 0:01:05]} cxd4 {[%emt 0:00:
00]} 8. Qxd4 {[%emt 0:00:38] The position is equal.} Bb7 {[%emt 0:00:07]} 9.
Bg5 {[%emt 0:10:31] [#]} h6 $146 {[%emt 0:06:23]} ({Black should try} 9... e6
$11) ({Predecessor:} 9... Qc7 10. O-O h6 11. Be3 Rc8 12. Nd2 e5 13. Qd3 Be7 14.
Rfd1 Nc5 15. Bxc5 dxc5 {½-½ (62) Sadhwani,R (2619)-Maghsoodloo,P (2699)
Chess.com INT 2022}) 10. Bxf6 $14 {[%emt 0:05:27]} Nxf6 {[%emt 0:00:11]} 11.
Nd2 {[%emt 0:00:40]} e5 {[%emt 0:09:37]} 12. Qe3 {[%emt 0:01:01]} Be7 {[%emt 0:
00:00]} 13. O-O {[%emt 0:12:48]} O-O {[%emt 0:02:55]} 14. Rfd1 {[%emt 0:09:46]}
Qc7 {[%emt 0:04:23]} 15. Nc4 {[%emt 0:01:19]} Nd7 {[%emt 0:04:39] [#]} 16. Nxd6
{[%emt 0:17:00] White is much more active. The black rooks are badly placed.}
Bxd6 $11 {[%emt 0:01:19] This bishop pair is nice.} 17. Qd3 {[%emt 0:00:43]}
Bb4 {[%emt 0:01:53]} 18. Qxd7 {[%emt 0:00:09]} Rac8 {[%emt 0:04:35]} 19. Na2 {
[%emt 0:03:31]} Bc5 {[%emt 0:01:13]} 20. Qxc7 {[%emt 0:04:41]} Rxc7 {[%emt 0:
00:00]} 21. Bd3 {[%emt 0:00:36]} g6 {[%emt 0:03:00]} 22. Nc3 {[%emt 0:04:15]}
f5 {[%emt 0:07:47]} 23. exf5 {[%emt 0:01:36]} gxf5 {[%emt 0:00:31]} 24. Bc4+ {
[%emt 0:00:30]} Kg7 {[%emt 0:02:09][%cal Yc5f2]} 25. Bd5 {[%emt 0:02:36]} Bd4 {
[%emt 0:03:48]} 26. Bxb7 {[%emt 0:00:07]} Rxb7 {[%emt 0:00:43]} 27. Ra3 {
[%emt 0:03:34]} Rc8 {[%emt 0:01:30]} 28. Rb3 {[%emt 0:01:29]} Bxc3 {[%emt 0:00:
00]} 29. bxc3 {[%emt 0:00:08]} Rc4 {[%emt 0:00:22]} 30. a5 {[%emt 0:04:36]} b5
{[%emt 0:00:51]} 31. Rd6 {[%emt 0:00:23]} Ra7 {[%emt 0:05:10]} 32. Rb4 {
[%emt 0:07:55] [#] Threatens to win with Rxc4.} Rxc3 {[%emt 0:02:46] Weighted
Error Value: White=0.10 (very precise) /Black=0.11 (very precise)} 1/2-1/2

[Event "44th Chess Olympiad Open 2022"]
[Site "Chennai"]
[Date "2022.07.30"]
[Round "2.3"]
[White "Carlsen, Magnus"]
[Black "Meier, Georg"]
[Result "1-0"]
[WhiteElo "2864"]
[BlackElo "2613"]
[Annotator "TA"]
[PlyCount "159"]
[EventDate "2022.??.??"]
[TimeControl "60"]

{[%evp 9,159,25,35,18,42,24,21,24,26,27,26,18,25,17,25,24,25,17,23,29,20,0,2,0,
0,7,6,14,16,0,0,0,0,0,0,0,0,0,0,-6,0,0,0,0,0,0,31,37,23,22,69,72,65,66,66,89,
104,62,62,62,62,62,62,62,62,62,64,56,78,78,78,6,6,6,6,8,22,0,0,0,0,0,0,0,0,0,
27,25,56,0,0,0,0,0,0,0,0,0,0,0,0,0,0,0,0,0,0,0,0,0,0,0,0,0,0,0,0,0,0,0,0,0,0,0,
0,0,0,0,0,0,0,0,0,0,0,0,0,0,0,0,0,0,0,0,0,0,0,0,27999,27999,27999,27999]} 1. e4
{[%emt 0:00:04]} e6 {[%emt 0:00:05]} 2. d4 {[%emt 0:00:08]} d5 {[%emt 0:00:05]}
3. Nc3 {[%emt 0:00:06]} dxe4 {[%emt 0:00:05]} 4. Nxe4 {[%emt 0:00:10]} Nd7 {
[%emt 0:00:05]} 5. c3 {[%emt 0:00:44]} Ngf6 {[%emt 0:01:39]} 6. Bd3 {[%emt 0:
00:00] C10: French with 3 Nc3: Unusual Black 3rd moves and 3...dxe4.} Nxe4 {
[%emt 0:02:56]} 7. Bxe4 {[%emt 0:00:02]} Nf6 {[%emt 0:00:16]} 8. Bc2 {[%emt 0:
00:00] The position is equal.} c5 {[%emt 0:00:47]} 9. Nf3 {[%emt 0:00:09]} cxd4
{[%emt 0:00:31]} 10. Nxd4 {[%emt 0:01:30]} Bc5 {[%emt 0:00:14]} 11. O-O {
[%emt 0:00:10]} Bxd4 {[%emt 0:00:53]} 12. cxd4 {[%emt 0:00:02]} b6 {[%emt 0:00:
00] [#]} 13. Qd3 $146 {[%emt 0:13:14]} ({Predecessor:} 13. Bg5 Bb7 14. Ba4+ Kf8
15. Bb3 Bd5 16. Bc2 Bb7 17. Qd2 Qd7 18. Rac1 Nd5 19. Qe2 {½-½ (51)
Prozorovsky,V (2415)-Avchinikov,V (2334) ICCF email 2018}) 13... Bb7 {[%emt 0:
00:00]} 14. Ba4+ {[%emt 0:01:37]} Kf8 {[%emt 0:08:42]} 15. Bd2 {[%emt 0:15:49]}
h5 {[%emt 0:23:39]} 16. Rac1 {[%emt 0:04:59]} h4 {[%emt 0:00:45][%cal Yh4h3]}
17. h3 {[%emt 0:03:05]} Qd6 {[%emt 0:13:06]} 18. Bd1 {[%emt 0:26:59]} Rd8 {
[%emt 0:05:44]} 19. Re1 {[%emt 0:06:48]} Kg8 {[%emt 0:01:25]} 20. Be3 {[%emt 0:
00:00]} Nd5 {[%emt 0:09:24]} 21. Qd2 {[%emt 0:04:56]} Nxe3 {[%emt 0:01:36]} 22.
fxe3 {[%emt 0:00:02]} Rh6 {[%emt 0:01:48][%cal Yh8h6,Yh6g6,Yg6g3]} 23. Rf1 {
[%emt 0:00:42]} Rg6 {[%emt 0:02:35]} 24. Bg4 {[%emt 0:04:35]} f5 {[%emt 0:00:
00]} 25. Bf3 {[%emt 0:00:08]} Bxf3 {[%emt 0:00:05]} 26. Rxf3 {[%emt 0:00:10]}
Rg3 {[%emt 0:00:51]} 27. Qf2 {[%emt 0:02:51]} e5 {[%emt 0:03:11][%cal Re5d4]}
28. Rxf5 {[%emt 0:01:48]} exd4 {[%emt 0:00:16]} 29. exd4 {[%emt 0:00:08]} Qxd4
{[%emt 0:01:04] [#]} (29... Qg6 $11 {is more appropriate.}) 30. Rf8+ $1 $14 {
[%emt 0:00:08]} Kh7 {[%emt 0:00:01]} 31. Rxd8 {[%emt 0:00:23]} Qxd8 {[%emt 0:
00:00] Endgame KQR-KQR} 32. Qf5+ {[%emt 0:00:25]} g6 {[%emt 0:01:23]} 33. Qf4 {
[%emt 0:02:57] And now Rc7+ would win.} Rd3 {[%emt 0:00:57]} 34. Rc7+ {[%emt 0:
00:13]} Rd7 {[%emt 0:00:08]} 35. Rxd7+ {[%emt 0:00:05]} Qxd7 {[%emt 0:00:06]}
36. Qxh4+ {[%emt 0:00:11] KQ-KQ} Kg7 {[%emt 0:00:38]} 37. Qf4 {[%emt 0:00:29]}
Qd5 {[%emt 0:00:49]} 38. a3 {[%emt 0:00:24]} b5 {[%emt 0:00:43]} 39. Qc7+ {
[%emt 0:00:51]} Kh6 {[%emt 0:00:26]} 40. Qxa7 {[%emt 0:05:42]} (40. b4 $16)
40... Qd1+ $11 {[%emt 0:00:26]} 41. Kh2 {[%emt 0:30:02] Qe3+ is the strong
threat.} Qd6+ {[%emt 0:05:19]} 42. Kh1 {[%emt 0:00:00]} Qd2 {[%emt 0:00:00]}
43. b4 {[%emt 0:00:00]} Qc1+ {[%emt 0:00:20]} 44. Qg1 {[%emt 0:00:00]} Qxa3 {
[%emt 0:00:08]} 45. Qe1 {[%emt 0:00:00]} Qd3 {[%emt 0:02:52]} 46. Qh4+ {
[%emt 0:00:00]} Kg7 {[%emt 0:00:08]} 47. Qe7+ {[%emt 0:00:00]} Kh6 {[%emt 0:00:
00]} 48. Kh2 {[%emt 0:00:00]} Qd4 {[%emt 0:01:35]} 49. h4 {[%emt 0:00:00]} (49.
Qc5 $14 Qd3 50. Qf8+ Kg5 51. Qe7+ Kh6 52. Qf8+ Kg5 53. Qc5+ Kf6 54. h4) 49...
Qf4+ {[%emt 0:02:24]} 50. Kh3 {[%emt 0:00:00]} Qf5+ {[%emt 0:01:29]} 51. Kg3 {
[%emt 0:00:00]} Qd5 {[%emt 0:01:40]} 52. Qc5 {[%emt 0:00:00]} Qd3+ {[%emt 0:00:
00]} 53. Kh2 {[%emt 0:00:00]} Qe4 {[%emt 0:01:21]} 54. Qg5+ {[%emt 0:00:00]}
Kh7 {[%emt 0:00:11]} 55. h5 {[%emt 0:00:00] Black must now prevent Qxg6+.} Qxb4
{[%emt 0:07:52]} 56. Qxg6+ {[%emt 0:00:00]} Kh8 {[%emt 0:00:07]} 57. Qf6+ {
[%emt 0:00:00]} Kh7 {[%emt 0:00:34]} 58. Qf5+ {[%emt 0:00:00]} Kg8 {[%emt 0:00:
00]} 59. Qe6+ {[%emt 0:00:00]} Kh7 {[%emt 0:00:40]} 60. Qf7+ {[%emt 0:00:00]}
Kh8 {[%emt 0:00:07]} 61. Qf6+ {[%emt 0:00:00]} Kh7 {[%emt 0:00:13]} 62. Kh3 {
[%emt 0:00:00]} Qe4 {[%emt 0:00:58]} 63. g4 {[%emt 0:00:00]} Qe3+ {[%emt 0:00:
00]} 64. Kg2 {[%emt 0:00:00]} Qe2+ {[%emt 0:00:14]} 65. Kg3 {[%emt 0:00:00]}
Qe1+ {[%emt 0:00:37]} 66. Qf2 {[%emt 0:00:28]} Qc3+ {[%emt 0:00:27]} 67. Kh4 {
[%emt 0:00:30]} b4 {[%emt 0:00:23]} 68. Qf7+ {[%emt 0:00:53]} Kh8 {[%emt 0:00:
00]} 69. Qe8+ {[%emt 0:00:13]} Kg7 {[%emt 0:02:15]} 70. Qe7+ {[%emt 0:01:22]}
Kh8 {[%emt 0:00:48]} 71. h6 {[%emt 0:02:15]} b3 {[%emt 0:01:33]} 72. Kh5 {
[%emt 0:02:37]} b2 {[%emt 0:01:33]} 73. Qe8+ {[%emt 0:00:06]} Kh7 {[%emt 0:00:
00] Strongly threatening ...Qh3+.} 74. Qe4+ {[%emt 0:00:06]} Kh8 {[%emt 0:00:
00]} 75. Kg6 {[%emt 0:00:43][%cal Re4e8]} b1=B $2 {[%emt 0:00:28]} (75... b1=Q
$11 76. Qxb1 Qe5) 76. Qxb1 {[%emt 0:00:09]} Qc6+ {[%emt 0:00:32]} 77. Kg5 {
[%emt 0:02:40]} Qc5+ $2 {[%emt 0:00:27]} (77... Qd5+ $11 78. Qf5 Qd8+ 79. Kh5 (
79. Qf6+ Kh7 $11) 79... Qe8+ 80. Kh4 Qe7+ 81. g5 Qe1+ 82. Kg4 Qe2+ 83. Kh3 Qe3+
84. Kh4 Qe1+ 85. Kg4 Qe2+ 86. Kh3 Qe3+ 87. Kh4 Qe1+) 78. Qf5 {[%emt 0:00:14]}
Qe3+ $2 {[%emt 0:00:26] [#]} (78... Qc7 $11 79. Kh5 Qf7+ 80. Kh4 Qe7+ 81. g5
Qe1+ 82. Kg4 Qd1+ 83. Qf3 Qa4+ 84. Qf4 Qd7+ 85. Kh4 Kg8 86. Qc4+ Kh7 87. Qe4+
Kg8 88. Qc4+ Kh8) 79. Qf4 $1 {[%emt 0:00:09]} Qc5+ {[%emt 0:00:09] [#]} 80. Kg6
$1 {[%emt 0:00:10] Weighted Error Value: White=0.07 (flawless) /Black=0.04 
(flawless)} 1-0

[Event "44th Chess Olympiad Open 2022"]
[Site "Chennai"]
[Date "2022.07.30"]
[Round "2.3"]
[White "Hammer, Jon Ludvig"]
[Black "Diaz Hollemaert, Nahuel"]
[Result "*"]
[WhiteElo "2638"]
[BlackElo "2425"]
[Annotator "TA"]
[PlyCount "140"]
[EventDate "2022.??.??"]
[TimeControl "60"]

{[%evp 24,140,48,16,47,-8,6,0,8,11,24,7,0,-24,-27,-28,0,0,0,0,0,10,42,0,34,23,
47,0,0,0,6,0,45,44,36,43,29,52,38,54,91,78,93,95,109,70,81,64,101,66,114,76,50,
39,53,42,79,0,0,0,0,0,0,0,0,0,0,0,0,0,0,0,0,0,20,18,39,18,19,18,25,5,42,17,17,
8,9,0,0,0,0,0,0,-62,0,0,0,0,0,0,0,-4,-5,-20,401,403,445,436,442,0,366,374,377,
264,366,334,356,342,306]} 1. e4 {[%emt 0:00:02]} e5 {[%emt 0:00:13]} 2. Nf3 {
[%emt 0:00:11]} Nc6 {[%emt 0:00:22]} 3. Bb5 {[%emt 0:00:08]} a6 {[%emt 0:00:47]
} 4. Ba4 {[%emt 0:00:06]} Nf6 {[%emt 0:00:31]} 5. O-O {[%emt 0:00:15]} Be7 {
[%emt 0:01:37]} 6. Re1 {[%emt 0:00:08]} b5 {[%emt 0:00:07]} 7. Bb3 {[%emt 0:00:
00]} d6 {[%emt 0:00:31]} 8. c3 {[%emt 0:00:07][%cal Yc2c3,Yc3c4]} O-O {[%emt 0:
01:09]} 9. h3 {[%emt 0:00:10]} Nb8 {[%emt 0:02:00][%cal Yc6b8,Yb8d7,Yd7b6]} 10.
d4 {[%emt 0:00:18]} Nbd7 {[%emt 0:00:07]} 11. c4 {[%emt 0:00:00]} c6 {[%emt 0:
04:01]} 12. Nc3 {[%emt 0:00:16]} Bb7 {[%emt 0:02:08]} 13. a3 {[%emt 0:03:22]}
Qb8 {[%emt 0:16:20] [#] C95: Closed Ruy Lopez: Breyer Variation with 10 d4.}
14. g4 $146 {[%emt 0:32:03]} (14. Ba2 $14) ({Predecessor:} 14. Ba2 Nb6 15. c5
dxc5 16. dxe5 Ne8 17. Bf4 Bc8 18. Qd2 Be6 19. Nd5 cxd5 20. exd5 Bf5 21. g4 {
0-1 (55) Nayhebaver,M (2466)-Barseghyan,H (2466) Austria 2019}) 14... Nb6 $11 {
[%emt 0:25:46]} 15. cxb5 {[%emt 0:09:29]} axb5 {[%emt 0:11:12] The position is
equal.} 16. Bg5 {[%emt 0:00:07]} Re8 {[%emt 0:00:00]} 17. dxe5 {[%emt 0:06:55]}
dxe5 {[%emt 0:00:03]} 18. Nh4 {[%emt 0:00:13]} h6 $1 {[%emt 0:10:45]} 19. Be3 {
[%emt 0:07:43]} Nc4 {[%emt 0:00:19]} 20. Bxc4 {[%emt 0:06:45]} bxc4 {[%emt 0:
00:02]} 21. Nf5 {[%emt 0:00:13][%cal Ye3h6]} Bf8 {[%emt 0:00:09]} 22. Qf3 {
[%emt 0:03:07][%cal Yf5h6]} Bc8 {[%emt 0:01:19]} 23. Re2 {[%emt 0:06:47][%cal
Yf5h6]} (23. Nxh6+ $5 gxh6 24. Qxf6 $14) 23... Nd7 {[%emt 0:03:39]} (23... Bxf5
$5 24. Qxf5 Re6 $11) 24. h4 {[%emt 0:02:35]} Nc5 {[%emt 0:01:39]} 25. Bxc5 {
[%emt 0:04:56]} Bxc5 {[%emt 0:00:23]} 26. g5 {[%emt 0:00:24]} Bf8 {[%emt 0:03:
41]} 27. Kh1 {[%emt 0:07:09]} h5 {[%emt 0:00:00]} 28. Rg1 {[%emt 0:00:45][%cal
Ya1g1,Yg1g3,Yg3f3,Yf3f6] g6 is the strong threat.} g6 {[%emt 0:02:57]} 29. Nh6+
$1 {[%emt 0:00:06]} Bxh6 {[%emt 0:00:00]} 30. gxh6 {[%emt 0:00:01] White wants
to mate with Qf6.} Qd6 {[%emt 0:00:00] Prevents Qf6. Strongly threatening ...
Bg4.} 31. Qxh5 {[%emt 0:00:22]} ({Much weaker is} 31. h7+ Kh8 32. Rd2 (32. Qxf7
$2 Bg4 $17) 32... Qe7 $17) 31... Qf6 {[%emt 0:01:04]} 32. Rg3 {[%emt 0:00:52]}
Ra7 {[%emt 0:01:41]} 33. Qg5 {[%emt 0:01:01]} Qe7 {[%emt 0:00:43]} 34. Kg2 {
[%emt 0:01:18]} Kh7 {[%emt 0:00:00]} 35. Rd2 {[%emt 0:01:06]} Rg8 {[%emt 0:00:
24]} 36. Rf3 {[%emt 0:02:17] Against f6} Rb7 {[%emt 0:02:01]} (36... Be6 $14 {
is more appropriate.}) 37. Rf6 {[%emt 0:00:42]} Be6 {[%emt 0:00:06]} 38. Kh2 {
[%emt 0:06:15]} Qf8 {[%emt 0:00:00]} 39. Na4 {[%emt 0:00:47]} Ra7 {[%emt 0:00:
53] [#]} 40. Nc3 {[%emt 0:00:31] White is more active.} (40. f4 $1 $16) 40...
Qxh6 {[%emt 0:00:23]} 41. Rf3 {[%emt 0:06:42]} Qxg5 {[%emt 0:20:00]} 42. hxg5 {
[%emt 0:00:02]} Kg7 {[%emt 0:00:00]} 43. Rg3 {[%emt 0:00:00]} Raa8 {[%emt 0:00:
31]} 44. f3 {[%emt 0:00:53]} Rgd8 {[%emt 0:04:11]} 45. Rxd8 {[%emt 0:02:53]}
Rxd8 {[%emt 0:00:01] Endgame KRB-KRN} 46. Rg1 {[%emt 0:00:30]} Rd2+ {[%emt 0:
02:15]} 47. Rg2 {[%emt 0:00:02]} Rd3 {[%emt 0:00:14]} 48. Kg3 {[%emt 0:00:02]}
f6 {[%emt 0:00:00]} 49. Na4 {[%emt 0:05:11] aiming for Nc5.} Bf7 {[%emt 0:00:
51]} 50. Nc5 {[%emt 0:01:46]} (50. Rc2 $5 {[%cal Rg5f6]}) 50... Rd1 {[%emt 0:
00:10]} 51. Kg4 {[%emt 0:03:02]} Rd4 {[%emt 0:00:56]} 52. Rc2 {[%emt 0:03:47]}
Rd1 {[%emt 0:00:00]} (52... f5+ $5 53. Kh3 fxe4 54. Nxe4 (54. fxe4 Kf8 $11)
54... Bd5 $11) 53. gxf6+ {[%emt 0:00:05]} Kxf6 {[%emt 0:00:02]} 54. Kg3 {
[%emt 0:00:10]} Ke7 {[%emt 0:01:21]} 55. Kf2 {[%emt 0:00:12]} Kd6 {[%emt 0:00:
48]} 56. Na4 {[%emt 0:00:00]} g5 {[%emt 0:01:16]} 57. Ke2 {[%emt 0:08:19]} Rd4
{[%emt 0:01:17]} 58. Nb6 {[%emt 0:01:17]} (58. Ke3 $11) 58... Kc7 {[%emt 0:01:
07]} (58... g4 $1 $15) 59. Na4 {[%emt 0:00:13]} Kd6 {[%emt 0:00:08]} 60. Ke3 {
[%emt 0:02:51]} Bh5 {[%emt 0:01:07]} 61. Rc3 {[%emt 0:00:16] Prevents Rd3+.}
Bg6 {[%emt 0:00:41]} 62. Nb6 {[%emt 0:02:07]} Kc5 {[%emt 0:00:00]} 63. Nc8 {
[%emt 0:00:02]} Rd7 $2 {[%emt 0:00:00] [#]} (63... g4 $11 {and Black stays
safe.} 64. b4+ (64. Ne7 Bh7 $15) 64... Kb5 65. Na7+ Kb6 66. Nc8+ Kc7) 64. Rxc4+
$3 $18 {[%emt 0:00:14]} Kb5 {[%emt 0:00:41]} (64... Kxc4 65. Nb6+) 65. Rb4+ {
[%emt 0:01:28]} Kc5 {[%emt 0:00:02]} 66. Rc4+ {[%emt 0:00:14]} Kb5 {[%emt 0:00:
00]} 67. b3 {[%emt 0:00:46] Black must now prevent a4+.} Bf7 {[%emt 0:00:57]}
68. a4+ {[%emt 0:00:03]} Ka6 {[%emt 0:00:32]} 69. Rxc6+ {[%emt 0:00:40]} Kb7 {
[%emt 0:00:01]} 70. Rc3 {[%emt 0:00:21]} Be6 {[%emt 0:00:15] Weighted Error
Value: White=0.14 (very precise) /Black=0.10 (very precise)} *

[Event "44th Chess Olympiad Open 2022"]
[Site "Chennai"]
[Date "2022.07.30"]
[Round "2.3"]
[White "Roselli Mailhe, Bernardo"]
[Black "Christiansen, Johan-Sebastian"]
[Result "0-1"]
[WhiteElo "2413"]
[BlackElo "2593"]
[Annotator "ChessBase"]
[PlyCount "74"]
[EventDate "2022.??.??"]
[TimeControl "60"]

1. d4 {[%emt 0:00:19]} Nf6 {[%emt 0:00:19]} 2. c4 {[%emt 0:00:22]} g6 {[%emt 0:
00:00]} 3. Nc3 {[%emt 0:01:18]} Bg7 {[%emt 0:00:23]} 4. e4 {[%emt 0:00:21]} d6
{[%emt 0:00:08]} 5. Nf3 {[%emt 0:00:53]} O-O {[%emt 0:00:19]} 6. Be2 {[%emt 0:
00:00]} e5 {[%emt 0:00:20]} 7. d5 {[%emt 0:00:06]} a5 {[%emt 0:00:31]} 8. Bg5 {
[%emt 0:00:16]} h6 {[%emt 0:00:57]} 9. Bh4 {[%emt 0:00:05]} Na6 {[%emt 0:00:44]
} 10. Nd2 {[%emt 0:00:48]} Bd7 {[%emt 0:02:07]} 11. O-O {[%emt 0:01:36]} Nc5 {
[%emt 0:02:58]} 12. Rb1 {[%emt 0:11:24]} Qe8 {[%emt 0:12:39]} 13. b3 {[%emt 0:
00:00]} Nh7 {[%emt 0:04:31]} 14. a3 {[%emt 0:04:45]} h5 {[%emt 0:03:25]} 15. f3
{[%emt 0:02:26]} Bh6 {[%emt 0:01:16]} 16. Qc2 {[%emt 0:07:49]} Be3+ {[%emt 0:
00:00]} 17. Kh1 {[%emt 0:02:58]} f5 {[%emt 0:09:17]} 18. b4 {[%emt 0:06:57]}
axb4 {[%emt 0:00:45]} 19. axb4 {[%emt 0:00:05]} Na6 {[%emt 0:06:02]} 20. exf5 {
[%emt 0:05:54]} gxf5 {[%emt 0:04:48]} 21. Bd3 {[%emt 0:04:48]} Qg6 {[%emt 0:00:
00]} 22. Bf2 {[%emt 0:04:32]} Bxf2 {[%emt 0:04:01]} 23. Rxf2 {[%emt 0:00:15]}
c5 {[%emt 0:20:33]} 24. dxc6 {[%emt 0:06:52]} bxc6 {[%emt 0:00:15]} 25. Re2 {
[%emt 0:06:27]} Rab8 {[%emt 0:07:37]} 26. Qa4 {[%emt 0:05:43]} Ra8 {[%emt 0:00:
00]} 27. Qc2 {[%emt 0:00:13]} Qf6 {[%emt 0:03:26]} 28. Nf1 {[%emt 0:11:54]} e4
{[%emt 0:01:42]} 29. fxe4 {[%emt 0:00:34]} fxe4 {[%emt 0:01:15]} 30. Rxe4 {
[%emt 0:02:50]} Nxb4 {[%emt 0:00:34]} 31. Qd2 {[%emt 0:00:41]} Nxd3 {[%emt 0:
00:00]} 32. Qxd3 {[%emt 0:00:04]} Ra3 {[%emt 0:01:15]} 33. Ng3 {[%emt 0:06:04]}
Rxc3 {[%emt 0:00:33]} 34. Qd2 {[%emt 0:00:36]} h4 {[%emt 0:03:09]} 35. Ne2 {
[%emt 0:00:31]} Rf3 {[%emt 0:00:59]} 36. Rd4 {[%emt 0:02:40]} Rf2 {[%emt 0:00:
00]} 37. Rd1 {[%emt 0:00:21]} h3 {[%emt 0:00:42]} 0-1